Cogmind - Beta 13 @@@ ROGUE MODE // 2024.04.02 @ 17:47:45 Player: Gingerlink Result: Destroyed by B-48 Gladiator with Mace Performance ------------- Evolutions (3) 1500 Regions Visited (7) 1400 Robots Destroyed (80) 400 Value Destroyed (2522) 2522 Prototype IDs (0) 0 Alien Tech Used (0) 0 Bonus (90) 90 TOTAL SCORE: 5912 Bonus ------- Follower Combat Kills 90 Cogmind --------- Core Integrity 0/700 Matter 26/300 Energy 286/290 System Corruption 15% Temperature Cool (0) Movement Treading (145) Location -7/Lower Caves Parts ------- > --- POWER (1) -------- Improved Deuterium Engine > --- PROPULSION (4) --- Advanced Treads Advanced Treads > --- UTILITY (6) ------ Small Storage Unit Advanced Targeting Computer Improved Medium Armor Plating > --- WEAPON (2) ------- Gauss Cannon Gauss Cannon (fused) > --- INVENTORY (8) ---- Light Nuclear Core Advanced Treads Advanced Treads Advanced Treads Improved Trap Extractor (0/6) Shock Bomb Launcher Shock Bomb Launcher Peak State ------------ > --- POWER ------------ Improved Deuterium Engine > --- PROPULSION ------- Advanced Treads Advanced Treads Advanced Treads Advanced Treads > --- UTILITY ---------- Improved Cooling System Small Storage Unit Weight Redist. System Advanced Targeting Computer Kinecellerator Shock Absorption System > --- WEAPON ----------- Gauss Cannon Gauss Cannon > --- INVENTORY -------- Light Nuclear Core Advanced Treads Advanced Treads Advanced Treads Advanced Treads Shock Absorption System Shock Bomb Launcher Shock Bomb Launcher [Rating: 44] Favorites ----------- Power Light Ion Engine Engine Light Ion Engine Power Core Micro Nuclear Core Reactor Antimatter Reactor Propulsion Aluminum Leg Treads Advanced Treads Leg Aluminum Leg Wheel Subdweller Monowheel Flight Unit VTOL Module Utility Small Storage Unit Device Shock Absorption System Storage Small Storage Unit Processor Advanced Targeting Computer Protection Scrap Shield Weapon Subdweller Machine Gun Energy Gun Makeshift Laser Energy Cannon Subdweller Beam Cannon Ballistic Gun Subdweller Machine Gun Ballistic Cannon Gauss Cannon Launcher Grenade Launcher Special Weapon Flamer Impact Weapon Heavy Hammer Build | -11 -10 -10 -8 -7 -7 -7 -7 ------- Run | Yrd Mat Sub Mat Fac Was Fac Low Slots Evolved 6 | . . . 4 2 . . . Power . | . . . . . . . . Propulsion 2 | . . . 1 1 . . . Utility 4 | . . . 3 1 . . . Weapon . | . . . . . . . . Parts Attached 106 | 6 7 10 20 24 5 33 1 Power 12 | 1 . . 4 2 2 3 . Engine 6 | 1 . . 2 1 . 2 . Core 5 | . . . 2 1 1 1 . Reactor 1 | . . . . . 1 . . Propulsion 26 | 2 2 . 3 7 1 10 1 Treads 16 | 2 . . 2 3 . 8 1 Leg 4 | . 2 . . 1 . 1 . Wheel 1 | . . . 1 . . . . Hover . | . . . . . . . . Flight 5 | . . . . 3 1 1 . Utility 35 | 1 1 3 6 9 1 14 . Device 16 | . 1 1 1 4 . 9 . Storage 8 | 1 . . 4 1 . 2 . Processor 2 | . . . . . 1 1 . Hackware . | . . . . . . . . Protection 9 | . . 2 1 4 . 2 . Artifact . | . . . . . . . . Weapon 33 | 2 4 7 7 6 1 6 . Energy Gun 10 | 1 1 1 1 2 1 3 . Energy Cannon 2 | . . 1 . 1 . . . Ballistic Gun 7 | 1 1 3 . 1 . 1 . Ballistic Cannon 3 | . . 1 . . . 2 . Launcher 6 | . 2 . 4 . . . . Special Weapon 1 | . . 1 . . . . . Impact Weapon 4 | . . . 2 2 . . . Slashing Weapon . | . . . . . . . . Piercing Weapon . | . . . . . . . . Special Melee Weapon . | . . . . . . . . Unidentified Prototypes . | . . . . . . . . Parts Lost 53 | . 4 2 14 12 . 15 6 Power 5 | . . . 3 1 . 1 . Propulsion 16 | . 2 . 5 1 . 5 3 Utility 20 | . . 1 2 8 . 6 3 Weapon 12 | . 2 1 4 2 . 3 . Highest Loss Streak 10 | . 3 1 10 3 . 6 6 To Critical Strikes . | . . . . . . . . Average Slot Usage (%) 79 | . 92 85 71 59 42 81 98 Engine 8 | . 14 14 8 2 . 2 7 Treads 10 | . 24 . . 7 . 22 29 Leg 12 | . 3 28 14 4 . . . Flight 1 | . . . . . 23 4 . Device 9 | . 7 7 2 10 . 17 21 Storage 6 | . 14 1 17 6 . 8 7 Processor 1 | . . . . . . 4 7 Protection 6 | . . 6 10 13 1 1 7 Energy Gun 4 | . 4 6 5 2 4 4 . Energy Cannon 2 | . . 5 7 . . . . Ballistic Gun 5 | . 5 10 1 . 4 3 . Ballistic Cannon 2 | . . 1 . . . 5 15 Launcher 2 | . 17 . 1 . . . . Special Weapon 1 | . . 3 . . . . . Impact Weapon 1 | . . . . 8 . . . Naked Turns . | . . . . . . . . Heaviest Build 57 | 12 15 33 57 44 17 43 43 Greatest Support 94 | 40 40 20 20 84 12 94 88 Greatest Overweight (x) 9 | . 1 1 9 7 1 1 1 Average Overweight (x) . | . . . 2 1 . . . Largest Inventory Capacity 10 | 8 8 8 10 10 5 8 8 Average Capacity 6 | 7 8 5 8 7 5 7 8 Most Carried 10 | 3 6 5 10 7 5 8 8 Average Carried 5 | . 4 4 6 4 4 5 7 Final Capacity 10 | 8 8 5 10 5 5 8 8 Final Carried 8 | 1 2 5 4 4 5 8 7 Class Distribution -------------------- 65% | Mutant 15% | Scavenger-Mutant 10% | Subdweller-Mutant 5% | Gladiator Dominant Class ---------------- Mutant | -10/Materials Scavenger-Mutant | -10/Subcaves Mutant | -8/Materials Mutant | -7/Factory Sprinter | -7/Waste Mutant | -7/Factory Mutant | -7/Lower Caves Resources | -11 -10 -10 -8 -7 -7 -7 -7 ----------- Run | Yrd Mat Sub Mat Fac Was Fac Low Matter Collected 2097 | 246 219 327 148 350 50 746 11 Remotely . | . . . . . . . . Salvage Created 2475 | 19 318 196 347 299 . 1128 168 Parts 115 | 2 30 13 13 18 . 35 4 Haulers Intercepted 2 | . . . 1 . . 1 . Recyclers Shooed 1 | . . . . . . 1 . Parts Field Recycled . | . . . . . . . . Retrieved Matter . | . . . . . . . . Parts Self-Destructed 15 | . . 9 . . . . 6 Prevented 1 | . . . . . . . 1 Kills | -11 -10 -10 -8 -7 -7 -7 -7 ------- Run | Yrd Mat Sub Mat Fac Was Fac Low Combat Hostiles Destroyed 52 | . 8 7 6 8 . 19 4 Melee 2 | . . . . 2 . . . Guns 24 | . 3 5 . 5 . 11 . Cannons 13 | . . 2 . . . 7 4 AOE 10 | . 5 . 5 . . . . Classes Destroyed 15 | 1 6 3 2 1 . 2 . Worker 7 | 1 3 . . 1 . 2 . Builder 3 | . 1 . . . . 2 . Hauler 2 | . . . 1 . . 1 . Recycler 6 | . 1 . 2 . . 3 . Operator 2 | . 1 . 1 . . . . Turret 2 | . . 2 . . . . . Watcher 6 | . 2 . 3 . . 1 . Swarmer 15 | . 3 3 . 3 . 5 1 Grunt 17 | . 5 . 4 . . 6 2 Brawler 2 | . . . . . . 1 1 Duelist 2 | . . . 1 . . 1 . Sentry 7 | . . 1 1 2 . 3 . Hunter 1 | . . . . . . 1 . Programmer 5 | . . . . 3 . 2 . Subdweller 3 | . . 3 . . . . . Best Kill Streak 7 | 1 4 4 7 3 . 4 4 Combat Bots Only 4 | . 2 2 3 3 . 3 4 Max Kills in Single Turn 2 | 1 2 1 2 1 . 1 1 Gunslinging . | . . . . . . . . Exploded 2 | . 1 . 2 . . . . Melee 1 | . . . . 1 . . . Uniques/NPCs Destroyed . | . . . . . . . . Combat | -11 -10 -10 -8 -7 -7 -7 -7 -------- Run | Yrd Mat Sub Mat Fac Was Fac Low Hostile Shots Fired 869 | . 28 54 104 331 1 296 55 Missed 305 | . 11 17 23 133 1 105 15 Damage Taken 8027 | . 545 490 1914 2166 . 2125 787 Core 1348 | . 102 46 481 277 . 356 86 Absorbed by Shields 5 | . . . . 5 . . . Redirected to Shielding 201 | . . . . 201 . . . Regen/Repaired (Parts) 21 | . . . . . 21 . . Core Remaining (%) 50 | 100 . 40 12 . . . . Volleys Fired 207 | 1 18 22 28 32 . 101 5 Largest 2 | 2 2 2 2 2 . 2 2 Hottest 150 | 60 60 150 143 105 . 150 96 Shots Fired 316 | 2 36 42 46 35 . 145 10 Gun 191 | 2 12 31 16 27 . 103 . Cannon 83 | . . 7 16 8 . 42 10 Launcher 38 | . 24 . 14 . . . . Special 4 | . . 4 . . . . . Kinetic 140 | 1 6 16 2 18 . 87 10 Thermal 116 | . . 20 30 8 . 58 . Explosive 38 | . 24 . 14 . . . . Electromagnetic 22 | 1 6 6 . 9 . . . Robot Hit Streak 20 | 1 5 6 6 20 . 12 9 Robot Miss Streak 8 | . 2 4 4 8 . 8 1 Penetration Max 1 | . . . . . . 1 . Secondary Targets . | . . . . . . . . Shots Hit Robots 207 | 1 13 21 29 39 . 98 6 Core Hits 135 | 1 27 12 21 31 . 39 4 Critical Kills . | . . . . . . . . Critical Parts Destroyed 3 | . . . 1 1 . 1 . Critical Strikes 16 | . . 1 1 1 . 13 . Burn 9 | . . . . . . 9 . Destroy 1 | . . . . . . 1 . Blast 4 | . . 1 . . . 3 . Smash 2 | . . . 1 1 . . . Melee Attacks 16 | . . . 2 14 . . . Impact 16 | . . . 2 14 . . . Slashing . | . . . . . . . . Piercing . | . . . . . . . . Sneak Attacks . | . . . . . . . . Combat Hostiles . | . . . . . . . . Follow-up Attacks . | . . . . . . . . Damage Inflicted 6274 | 13 881 369 1452 913 . 2454 192 Guns 2500 | 13 131 283 173 384 . 1516 . Cannons 1453 | . . 75 194 216 . 776 192 Explosions 1931 | . 733 . 1055 . . 143 . Melee 340 | . . . 27 313 . . . Ramming 39 | . 17 . 3 . . 19 . Kinetic 2154 | . 43 165 36 269 . 1449 192 Thermal 1639 | . 67 182 331 216 . 843 . Explosive 1864 | . 666 . 1055 . . 143 . Electromagnetic 238 | 13 88 22 . 115 . . . Impact 340 | . . . 27 313 . . . Slashing . | . . . . . . . . Piercing . | . . . . . . . . Highest Corruption 15 | . 2 2 . 5 5 15 15 Average Corruption 5 | . 2 2 . 2 5 11 15 Corruption Purged . | . . . . . . . . Corruption Blocked . | . . . . . . . . Effects 146 | . 7 44 . 14 5 52 24 Message Errors 50 | . 4 15 . 4 1 22 4 Matter Fused 32 | . 1 11 . 3 1 9 7 Heat Flow Errors 11 | . 1 2 . 2 . 3 3 Energy Discharges 14 | . 1 5 . . . 5 3 Parts Fused 4 | . . 2 . 1 . 1 . Data Loss (minor) 21 | . . 6 . 3 1 8 3 Data Loss (major) 5 | . . 1 . . 1 1 2 Misfires 5 | . . 2 . . . 2 1 Alerts 2 | . . . . 1 1 . . Weapon Failures 2 | . . . . . . 1 1 Overload Shots . | . . . . . . . . Overflow Damage 270 | . 88 . 87 80 . 15 . Projectiles 28 | . . . 15 . . 13 . Explosions 135 | . 88 . 45 . . 2 . Melee 107 | . . . 27 80 . . . Knockbacks 10 | . . 1 . 1 . 7 1 Impact 1 | . . . . 1 . . . Kinetic 9 | . . 1 . . . 7 1 Secondary . | . . . . . . . . Self-Inflicted Damage 619 | . 315 . 216 . . 88 . Shots 15 | . 8 . 6 . . 1 . Rammed 3 | . . . 1 . . 2 . Targets Rammed 10 | . 5 . 1 . . 4 . Kicked 5 | . 5 . . . . . . Crushed 2 | . . . . . . 2 . Highest Temperature 646 | . 94 260 646 231 . 536 235 Average Temperature 148 | . 25 96 220 71 . 159 81 Received Heat Transfer 1621 | . 63 129 558 382 . 363 126 Effects 19 | . . . 14 . . 5 . Shutdowns 4 | . . . 2 . . 2 . Energy Bleed 5 | . . . 4 . . 1 . Interference 1 | . . . . . . 1 . Matter Decay 2 | . . . 2 . . . . Short Circuit 3 | . . . 2 . . 1 . Damage (minor) 2 | . . . 2 . . . . Damage (core) 2 | . . . 2 . . . . Siege Activations . | . . . . . . . . Robots Corrupted 1 | . . . . 1 . . . Combat Hostiles 1 | . . . . 1 . . . Parts Fried . | . . . . . . . . Impact Corruptions 4 | . . . 1 3 . . . Robots Melted 1 | . . . . . . 1 . Combat Hostiles 1 | . . . . . . 1 . Parts Melted 12 | . . 3 . . . 9 . Heat Transferred 3571 | . 50 450 555 296 . 2220 . Parts Sabotaged . | . . . . . . . . Parts Stolen . | . . . . . . . . Parts Stripped . | . . . . . . . . Power Chain Reactions 1 | . 1 . . . . . . Alert | -11 -10 -10 -8 -7 -7 -7 -7 ------- Run | Yrd Mat Sub Mat Fac Was Fac Low Peak Influence 342 | 5 165 . 219 105 69 342 . Initial 36 | . 3 . . 36 36 . . Average 78 | . 59 . 41 31 35 181 . Maximum Alert Level 1 | . . . 1 . . 1 . Low Security (%) 85 | 100 100 . 99 100 100 44 . Level 1 14 | . . . . . . 55 . Level 2 . | . . . . . . . . Level 3 . | . . . . . . . . Level 4 . | . . . . . . . . Level 5 . | . . . . . . . . High Security . | . . . . . . . . Max Security . | . . . . . . . . Squads Dispatched 9 | . 1 . 1 3 . 4 . Investigation . | . . . . . . . . Extermination 6 | . . . . 3 . 3 . Reinforcement 3 | . 1 . 1 . . 1 . Assault . | . . . . . . . . Garrison . | . . . . . . . . Intercept . | . . . . . . . . Searches Triggered . | . . . . . . . . Construction Impeded . | . . . . . . . . Haulers Reinforced . | . . . . . . . . Active Scanning Responses . | . . . . . . . . Cargo Convoy Interrupts . | . . . . . . . . Stealth | -11 -10 -10 -8 -7 -7 -7 -7 --------- Run | Yrd Mat Sub Mat Fac Was Fac Low Distress Signals 5 | . 1 . 2 . . 2 . Communications Jammed . | . . . . . . . . Distress Signals . | . . . . . . . . Times Spotted 123 | . 12 18 17 23 5 39 9 Peak Tracking Total 9 | . 3 4 4 5 4 8 9 Tactical Retreats 9 | . 1 2 . . 1 5 . Traps | -11 -10 -10 -8 -7 -7 -7 -7 ------- Run | Yrd Mat Sub Mat Fac Was Fac Low Traps Triggered 5 | . 2 . . 1 . 2 . Indirectly . | . . . . . . . . Trap Hack Attempts . | . . . . . . . . Triggered . | . . . . . . . . Disarmed . | . . . . . . . . Reprogrammed . | . . . . . . . . Reused . | . . . . . . . . Traps Extracted . | . . . . . . . . Installed . | . . . . . . . . Triggered 2 | . . . . . . . 2 Machines | -11 -10 -10 -8 -7 -7 -7 -7 ---------- Run | Yrd Mat Sub Mat Fac Was Fac Low Machines Disabled 16 | . 4 1 5 . . 6 . Max in Single Turn 4 | . 2 1 2 . . 4 . Machines Repaired . | . . . . . . . . Machines Dismantled . | . . . . . . . . Machines Sabotaged . | . . . . . . . . Overloaded Fab Kills . | . . . . . . . . Hacking | -11 -10 -10 -8 -7 -7 -7 -7 --------- Run | Yrd Mat Sub Mat Fac Was Fac Low Machines Accessed . | . . . . . . . . Terminals . | . . . . . . . . Fabricators . | . . . . . . . . Repair Stations . | . . . . . . . . Recycling Units . | . . . . . . . . Scanalyzers . | . . . . . . . . Garrison Access . | . . . . . . . . Total Hacks . | . . . . . . . . Successful . | . . . . . . . . Failed . | . . . . . . . . Catastrophic . | . . . . . . . . Database Lockouts . | . . . . . . . . Manual . | . . . . . . . . Terminals . | . . . . . . . . Fabricators . | . . . . . . . . Repair Stations . | . . . . . . . . Recycling Units . | . . . . . . . . Scanalyzers . | . . . . . . . . Garrison Access . | . . . . . . . . Terminal Hacks . | . . . . . . . . Fabricator Hacks . | . . . . . . . . Repair Station Hacks . | . . . . . . . . Recycling Unit Hacks . | . . . . . . . . Scanalyzer . | . . . . . . . . Garrison Access Hacks . | . . . . . . . . Unauthorized Hacks . | . . . . . . . . Terminals . | . . . . . . . . Fabricators . | . . . . . . . . Repair Stations . | . . . . . . . . Recycling Units . | . . . . . . . . Scanalyzers . | . . . . . . . . Garrison Access . | . . . . . . . . Data Cores Recovered . | . . . . . . . . Used . | . . . . . . . . Hacking Detections . | . . . . . . . . Full Trace Events . | . . . . . . . . Feedback Events . | . . . . . . . . Feedback Blocked . | . . . . . . . . Robot Schematics Acquired . | . . . . . . . . Robots Built . | . . . . . . . . Authchips . | . . . . . . . . Time . | . . . . . . . . Total Robot Build Rating . | . . . . . . . . Part Schematics Acquired . | . . . . . . . . Parts Built . | . . . . . . . . Authchips . | . . . . . . . . Time . | . . . . . . . . Total Part Build Rating . | . . . . . . . . Parts Repaired . | . . . . . . . . Time . | . . . . . . . . Parts Recycled . | . . . . . . . . Recycled Matter . | . . . . . . . . Retrieved Matter . | . . . . . . . . Retrieved Components . | . . . . . . . . Parts Scanalyzed . | . . . . . . . . Part Schematics Acquired . | . . . . . . . . Parts Damaged . | . . . . . . . . Bothacking | -11 -10 -10 -8 -7 -7 -7 -7 ------------ Run | Yrd Mat Sub Mat Fac Was Fac Low Used RIF Installer . | . . . . . . . . Robots Hacked . | . . . . . . . . Non-combat . | . . . . . . . . Combat . | . . . . . . . . Robot Hacks Applied . | . . . . . . . . Relay Couplers Released . | . . . . . . . . Fabnet Peak Effective % . | . . . . . . . . Robots Rewired . | . . . . . . . . Allies Hacked . | . . . . . . . . Hacks Repelled . | . . . . . . . . Allies | -11 -10 -10 -8 -7 -7 -7 -7 -------- Run | Yrd Mat Sub Mat Fac Was Fac Low Total Allies 20 | . . . . . 20 . . Largest Group 19 | . . . . . 19 . . Highest-Rated Group 465 | . . . . . 465 . . Highest-Rated Ally 35 | . . . . . 35 . . Total Orders . | . . . . . . . . Ally Attacks 140 | . . . . . 140 . . Total Damage 4530 | . . . . . 4530 . . Kills 10 | . . . . . 10 . . Allies Corrupted . | . . . . . . . . Allies Melted . | . . . . . . . . Intel | -11 -10 -10 -8 -7 -7 -7 -7 ------- Run | Yrd Mat Sub Mat Fac Was Fac Low Robot Analysis Total . | . . . . . . . . Derelict Logs Recovered 2 | . . 2 . . . . . Drone Launches . | . . . . . . . . Drone Recoveries . | . . . . . . . . Exploration | -11 -10 -10 -8 -7 -7 -7 -7 ------------- Run | Yrd Mat Sub Mat Fac Was Fac Low Turns Passed 9739 | 132 1376 3350 906 1749 172 1525 529 Spaces Moved 5926 | 77 662 2233 310 770 351 1170 353 Core 165 | 12 . . 19 132 . 2 . Treads 1913 | 65 489 . 25 315 . 666 353 Legs 2935 | . 173 2233 262 267 . . . Wheels 4 | . . . 4 . . . . Hover . | . . . . . . . . Flight 909 | . . . . 56 351 502 . Fastest Speed 27 | 50 120 120 120 110 30 27 145 Average Speed 144 | 142 160 145 252 203 33 96 145 Slowest Speed 500 | 160 190 190 500 400 110 160 225 Overloaded Moves . | . . . . . . . . Propulsion Burnouts . | . . . . . . . . Robots Hopped 4 | . . . . . . 4 . Cave-ins Triggered . | . . . . . . . . Exploration Rate (%) 45 | 5 81 80 28 17 92 24 39 Regions Visited 7 Branch Regions 2 Pre-discovered Areas 1 | . . 1 . . . . . Known Exits Taken . | . . . . . . . . Unknown Exits Taken 5 | 1 1 1 1 . . 1 . Scrap Searched 3 | . . 3 . . . . . Spaces Dug 11 | . 11 . . . . . . Terrain Destroyed 258 | . 133 . 70 . . 50 5 Melee . | . . . . . . . . Projectile 22 | . . . 6 . . 11 5 AOE 236 | . 133 . 64 . . 39 . Terrain Rammed . | . . . . . . . . Walls Destroyed . | . . . . . . . . Machines Disabled . | . . . . . . . . Actions | -11 -10 -10 -8 -7 -7 -7 -7 --------- Run | Yrd Mat Sub Mat Fac Was Fac Low Total 6774 | 96 938 2285 384 891 411 1410 359 Wait 395 | 9 242 7 . 40 38 59 . Move 5912 | 76 661 2232 309 770 350 1161 353 Hop 4 | . . . . . . 4 . Pick Up 40 | 4 3 2 9 4 2 16 . Fast Attach 73 | 3 3 10 12 19 5 21 . Attach 32 | 3 4 . 8 5 . 11 1 Detach 17 | . 2 4 5 2 2 2 . Swap 1 | . . . . . . 1 . Drop 51 | . . 8 10 7 14 12 . Fire 207 | 1 18 22 28 32 . 101 5 Melee 14 | . . . 2 12 . . . Ram . | . . . . . . . . Kick 5 | . 5 . . . . . . Crush 5 | . . . 1 . . 4 . Escape Stasis 18 | . . . . . . 18 . Rewire . | . . . . . . . . Trap . | . . . . . . . . Miscellaneous . | . . . . . . . . Route ------- -11/Scrapyard -10/Materials (discovered 4 exits: [*Mat x2] / [*Min] / [*Sub]) -10/Subcaves (discovered 2 exits: [*Mat] / [*Rec]) -8/Materials -7/Factory -7/Waste -7/Factory -7/Lower Caves History --------- Turn | Location | Event 6 | -11/Scrapyard | Discovered new exit (range 14) 133 | -11/Scrapyard | Entered Materials 305 | -10/Materials | Build established: Mutant 961 | -10/Materials | Discovered new exit (range 9) 1009 | -10/Materials | Discovered new exit (range 10) 1142 | -10/Materials | Discovered new exit (range 15) 1448 | -10/Materials | Lost 3 parts (1n2w) 1497 | -10/Materials | Discovered new exit (range 8) 1509 | -10/Materials | Entered Subcaves 1509 | -10/Subcaves | Learned Materials emergency access door positions 1765 | -10/Subcaves | Discovered new exit (range 11) 2608 | -10/Subcaves | Discovered new exit (range 13) 2650 | -10/Subcaves | Core integrity fell below 50% 2901 | -10/Subcaves | A swath of the cavern ceiling suddenly collapsed 2973 | -10/Subcaves | Build established: Scavenger-Mutant 3759 | -10/Subcaves | A swath of the cavern ceiling suddenly collapsed 4386 | -10/Subcaves | Build established: Subdweller-Mutant 4859 | -10/Subcaves | Entered Materials 4859 | -8/Materials | Evolved 4 slots: Propulsion x1, Utility x3 5370 | -8/Materials | Build established: Mutant 5487 | -8/Materials | Discovered new exit (range 13) 5632 | -8/Materials | Lost 4 parts (3n1u) 5686 | -8/Materials | Core integrity fell below 50% 5746 | -8/Materials | Core integrity fell below 20% 5765 | -8/Materials | Entered Factory 5765 | -7/Factory | Evolved 2 slots: Propulsion x1, Utility x1 5779 | -7/Factory | Lost 10 parts (3p2n1u4w) 6659 | -7/Factory | Lost 3 parts (2u1w) 6920 | -7/Factory | Build established: Gladiator 7199 | -7/Factory | Lost 3 parts (3u) 7417 | -7/Factory | Lost 3 parts (1n2u) 7448 | -7/Factory | Build established: Mutant 7514 | -7/Factory | Sucked down chute 7514 | -7/Factory | Entered Waste 7515 | -7/Waste | Met a frightened Derelict 7519 | -7/Waste | Spotted C-40 Crusher 7520 | -7/Waste | Spotted C-40 Crusher 7543 | -7/Waste | Spotted C-40 Crusher 7557 | -7/Waste | Spotted C-40 Crusher 7566 | -7/Waste | Spotted C-40 Crusher 7573 | -7/Waste | Warlord forces began an assault 7577 | -7/Waste | Allies destroyed C-40 Crusher 7597 | -7/Waste | Allies destroyed C-40 Crusher 7676 | -7/Waste | Discovered new exit (range 16) 7686 | -7/Waste | Entered Factory 7706 | -7/Factory | Lost 3 allies 7894 | -7/Factory | Core integrity fell below 50% 7996 | -7/Factory | Lost 6 parts (3n2u1w) 8080 | -7/Factory | Lost 3 parts (1n1u1w) 8174 | -7/Factory | System corruption reached 10% 8207 | -7/Factory | Lost 3 parts (1p1n1u) 8734 | -7/Factory | Core integrity fell below 20% 9136 | -7/Factory | Discovered new exit (range 8) 9211 | -7/Factory | Entered Lower Caves 9691 | -7/Lower Caves | Attracted the attention of an 0b10 outpost 9740 | -7/Lower Caves | Destroyed by B-48 Gladiator with Mace Last Messages --------------- G-47 Trooper knocked back. G-47 Trooper destroyed. Penetrated by Slug. Acquired 11 matter. Critical hit (Burn: +37). Slug penetrates Wall. Mace fries itself beyond repair. Imp. Heat Sink fries itself beyond repair. Penetrated by Slug. Shock Absorption System destroyed. Critical hit (Smash). Adv. Treads destroyed. Penetrated by Slug. Kinecellerator destroyed. Adv. Treads destroyed. Weight Redist. System destroyed. System corrupted: Matter fused (-5). Penetrated by Slug. Adv. Treads destroyed. [Achievement: 5k Club] Map ----- +----------------------------------------------------+ | ?????????????????????????????????????????## ##??? | | ????????????????????????????????????????## ##?? | | ???????????????????????????????????????## ##? | | ??????????????????????????####?????????# #? | | ?????????????????????????## ##????##### ## # | | ?????????????????????????# #???## ## ## # | | ?????????????????????????# ##### | | ?????????????????????????# ## | | ?????????????????????????# | | ?????????????????????????# ## | | ???????????????????????### ### | | ???????????????????????# ### #?# ## ## | | ????????????????????#### ###?#####?# #?##?# | | ????????????????????# #?????????# #???? | | ????????????????????# ##????????## #???? | | ????????????????????# ##????????# #???? | | ??????????????###???### ####?????# ???? | | ???????????#### ##### ## ####??# ##??? | | ???????????# #"## ##?# #???? | | ????????? #?# #???? | | ???????????? ### ## g#######%% ???? | | ????????????????##??## Ys #????# %%% ?? | | ?????????????????????# #????# = #?? | | ?????????????????????# #???? ##?? | | ?????????????????????## sb#??? ##??? | | ??????????????????????###@#?? # "#??? | | ????????????????????????# #?"""# #" "#??? | | ????????????????????????# ####### ###" ##??? | | ???????????????????????? ????? ##??# #??? | | ???????????????????????? ?????## ##???? ???? | | ???????????????????????? #??????##?????? #???? | | ???????????????????????? #??????????????? ?????? | | ??????????????????????? #?????????????????????? | | ??????????????????????? #?????????????????????? | | ??????????????????????? ##?????????????????????? | | ??????????????????????? ##???????????????????????? | | ?????????????????????? #?????????????????????????? | | ??????????????????????#??????????????????????????? | | ?????????????????????????????????????????????????? | | ?????????????????????????????????????????????????? | | ?????????????????????????????????????????????????? | | ?????????????????????????????????????????????????? | | ?????????????????????????????????????????????????? | | ?????????????????????????????????????????????????? | | ?????????????????????????????????????????????????? | | ?????????????????????????????????????????????????? | | ?????????????????????????????????????????????????? | | ?????????????????????????????????????????????????? | | ?????????????????????????????????????????????????? | | ?????????????????????????????????????????????????? | +----------------------------------------------------+ Best States ------------- Heat Dissipation 61 Energy Generation 21 Energy Capacity 325 Matter Stores 300 Matter Capacity 700 Sight Range 21 Robot Scan Range 15 Terrain Scan Range 14 Terrain Scan Density 10 Additional Mass Support 9 Base Temperature (-) 100 Armor Coverage 950 Resistance: EX 25 Propulsion Shielding 66 Evasion (%) 64 Targeting Accuracy 8 Target Analysis 8 Recoil Reduction 4 Matter Filtering 30 Kinecelleration 30 Force Boost 20 Trap Extractor Capacity 6 Item Schematics ----------------- None Robot Schematics ------------------ None Fabricated ------------ Nothing Alien Tech Used ----------------- None Achievements -------------- 5k Club It's Just You System Compromised The More The Merrier Challenges ------------ None Game ------ Seed AssembledPulseAutobeam Manual? 0 Play Time 01:13:20 Cumulative 4.9 hours Start 2024.04.01 @ 13:43:43 End 2024.04.02 @ 17:47:45 Sessions 3 Manual Loads 0 Difficulty Rogue Special Mode None Game No. 10 Rogue 10 Adventurer 0 Explorer 0 Win Type - Total 0 Types 0/0/0/0/0/0/0/0/0 Lore% 1 Gallery% 10 Achievement% 7 Wizard Run 0 Options --------- Layout 0 ASCII 0 Keyboard 1 Movement Vi Keybinds 0 Fullscreen 2 Font 24/Smallcaps Map View 76x50 Zoom Use 0% Tactical HUD 0 Map Filters NONE Filters NONE Steam 1 RUN: eb0fbb61-0fb9-44d4-a55b-9b38eda95aee